bitfinex/quotes_BTCUSD_20240905
["timestamp","ask_amount","ask_price","bid_price","bid_amount"]
[1725526540135,0.7924338,57068.0,57067.0,13.50822392]
[1725526540555,0.7924338,57068.0,57067.0,13.97372392]
[1725526542342,0.7924338,57068.0,57067.0,14.04390992]
[1725526543624,0.7924338,57068.0,57067.0,14.20096725]
[1725526544654,0.7924338,57068.0,57067.0,14.04390992]
[1725526546155,0.7924338,57068.0,57067.0,13.89609298]
[1725526549589,0.9792338,57068.0,57067.0,13.44503523]
[1725526549800,1.2220338,57068.0,57067.0,10.70229561]
[1725526550459,1.2220338,57068.0,57067.0,10.68829561]
[1725526550675,1.2220338,57068.0,57067.0,10.53073935]
[1725526550896,1.2220338,57068.0,57067.0,10.6313321]
[1725526551407,1.2220338,57068.0,57067.0,10.6173321]
[1725526551617,1.2220338,57068.0,57067.0,10.6453321]
[1725526551826,1.2220338,57068.0,57067.0,10.6313321]
[1725526552244,1.2220338,57068.0,57067.0,10.6453321]
[1725526554924,1.2220338,57068.0,57067.0,11.1108321]
[1725526557305,1.0352338,57068.0,57067.0,11.1108321]
[1725526557524,1.0352338,57068.0,57067.0,11.8108321]
[1725526560400,1.0352338,57068.0,57067.0,8.4052321]
[1725526560868,1.0352338,57068.0,57067.0,8.47513659]
[1725526561097,1.0352338,57068.0,57067.0,8.59279578]
[1725526561319,1.0352338,57068.0,57067.0,9.20366078]
[1725526561541,0.6172038,57068.0,57067.0,9.20366078]
[1725526561765,0.4419738,57068.0,57067.0,8.73816078]
[1725526562429,0.4419738,57068.0,57067.0,8.72416078]
[1725526562893,0.4419738,57068.0,57067.0,8.71016078]
[1725526563108,0.4419738,57068.0,57067.0,8.72416078]
[1725526563339,0.3718818,57068.0,57067.0,8.72416078]
[1725526563559,0.3017898,57068.0,57067.0,8.6265971]
[1725526563780,0.2667438,57068.0,57067.0,8.6265971]
[1725526564005,0.2667438,57068.0,57067.0,8.6407171]
[1725526564224,0.2316978,57068.0,57067.0,8.6407171]
[1725526566771,0.23400811,57068.0,57067.0,8.6407171]
[1725526567222,0.40840811,57068.0,57067.0,9.1402521]
[1725526567487,0.63890811,57068.0,57067.0,9.1402521]
[1725526570117,0.46450811,57068.0,57067.0,9.4907171]
[1725526570598,0.46450811,57068.0,57067.0,9.1402521]
[1725526571762,0.63740811,57068.0,57067.0,6.47619435]
[1725526571986,0.63740811,57068.0,57067.0,6.39619435]
[1725526572210,0.63740811,57068.0,57067.0,5.31100835]
[1725526572433,0.63740811,57068.0,57067.0,5.23500835]
[1725526572645,0.63740811,57068.0,57067.0,4.53500835]
[1725526572867,0.63740811,57068.0,57067.0,4.52100835]
[1725526573315,0.63740811,57068.0,57067.0,4.62100835]
[1725526573529,0.63740811,57068.0,57067.0,4.63500835]
[1725526574000,0.63740811,57068.0,57067.0,4.88151031]
[1725526574212,0.63740811,57068.0,57067.0,4.90451031]
[1725526575984,0.63740811,57068.0,57067.0,4.90651031]
[1725526576194,0.63740811,57068.0,57067.0,4.90451031]
[1725526578771,0.63740811,57068.0,57067.0,4.32500835]
[1725526578991,0.63740811,57068.0,57067.0,4.73813224]
[1725526579625,0.63740811,57068.0,57067.0,4.73812984]
[1725526579858,0.63740811,57068.0,57067.0,8.84812984]
[1725526580080,0.63740811,57068.0,57067.0,8.69051031]
[1725526580709,0.63740811,57068.0,57067.0,8.69251031]
[1725526581367,0.63740811,57068.0,57067.0,8.69051031]
[1725526581581,0.63740811,57068.0,57067.0,8.84811996]
[1725526582041,0.63740811,57068.0,57067.0,8.85011996]
[1725526583552,0.63740811,57068.0,57067.0,9.20058496]
[1725526584643,0.63740811,57068.0,57067.0,9.20057425]
[1725526587079,0.63740811,57068.0,57067.0,9.04297531]
[1725526592119,0.63740811,57068.0,57067.0,9.04097531]
[1725526594013,0.63740811,57068.0,57067.0,9.04297531]
[1725526595939,0.32420321,57068.0,57067.0,9.04297531]
[1725526596203,0.33796451,57068.0,57067.0,9.04297531]
[1725526597011,0.16506451,57068.0,57067.0,9.04297531]
[1725526597770,0.0137613,57068.0,57067.0,9.39344031]
[1725526598266,0.0137613,57068.0,57067.0,10.09344031]
[1725526598750,4.5239,57069.0,57068.0,1.611065]
[1725526598934,4.5239,57069.0,57068.0,7.82067467]
[1725526599208,4.5239,57069.0,57068.0,7.90563467]
[1725526599416,4.5239,57069.0,57068.0,8.95609367]
[1725526600096,4.5239,57069.0,57068.0,8.97009367]
[1725526600556,4.5239,57069.0,57068.0,8.98409367]
[1725526602144,4.50403783,57069.0,57068.0,8.98409367]
[1725526602607,4.51780715,57069.0,57068.0,8.98409367]
[1725526602841,4.41267215,57069.0,57068.0,8.98409367]
[1725526603066,3.39738365,57069.0,57068.0,10.92116054]
[1725526603270,3.39819865,57069.0,57068.0,9.91109151]
[1725526603720,3.36315365,57069.0,57068.0,10.26155051]
[1725526604015,3.29306365,57069.0,57068.0,10.26155051]
[1725526604232,3.22297365,57069.0,57068.0,9.4004518]
[1725526604426,3.22297365,57069.0,57068.0,9.15394984]
[1725526604667,3.20560121,57069.0,57068.0,9.15394984]
[1725526604878,3.03037621,57069.0,57068.0,9.15394984]
[1725526605160,3.03037621,57069.0,57068.0,14.07413189]
[1725526605802,2.99533121,57069.0,57068.0,14.07413189]
[1725526606980,2.92524121,57069.0,57068.0,14.07413189]
[1725526607184,2.85515121,57069.0,57068.0,14.06193189]
[1725526607624,2.82010621,57069.0,57068.0,14.07413189]
[1725526607844,2.75001621,57069.0,57068.0,14.07413189]
[1725526608088,2.64488121,57069.0,57068.0,14.07413189]
[1725526608317,2.64488121,57069.0,57068.0,15.37470092]
[1725526608758,2.63111189,57069.0,57068.0,15.37470092]
[1725526609027,2.56102189,57069.0,57068.0,15.37470092]
[1725526609219,2.49093189,57069.0,57068.0,15.37470092]
[1725526610343,2.38579689,57069.0,57068.0,15.37470092]
[1725526611727,2.17252689,57069.0,57068.0,15.62120288]
[1725526611945,2.03234689,57069.0,57068.0,15.83957061]
[1725526612176,2.03234689,57069.0,57068.0,13.86849962]
[1725526612395,2.04625067,57069.0,57068.0,14.0220175]
[1725526612862,1.90607067,57069.0,57068.0,13.9940175]
[1725526613065,1.87102567,57069.0,57068.0,14.0080175]
[1725526613288,1.87102567,57069.0,57068.0,14.0220175]
[1725526613495,0.92582717,57069.0,57068.0,13.91028256]
[1725526613701,0.87246217,57069.0,57068.0,13.91028256]
[1725526613917,0.71912905,57069.0,57068.0,13.91028256]
[1725526614153,0.64903905,57069.0,57068.0,13.92428256]
[1725526614604,0.64903905,57069.0,57068.0,14.34945598]
[1725526615042,0.61399405,57069.0,57068.0,14.34945598]
[1725526615258,0.45353158,57069.0,57068.0,14.33545598]
[1725526615491,0.45353158,57069.0,57068.0,14.3626122]
[1725526615707,0.41848658,57069.0,57068.0,14.3626122]
[1725526615941,0.34839658,57069.0,57068.0,14.3486122]
[1725526616153,1.12764335,57070.0,57069.0,1.961486]
[1725526616361,2.40562541,57070.0,57069.0,8.87109567]
[1725526616572,2.40562541,57070.0,57069.0,9.37992994]
[1725526616784,2.33553541,57070.0,57069.0,9.74353816]
[1725526616993,2.26544541,57070.0,57069.0,9.74353816]
[1725526617198,2.23040041,57070.0,57069.0,9.74353816]
[1725526617412,2.23040041,57070.0,57069.0,9.75753816]
[1725526617837,2.23040041,57070.0,57069.0,9.77153816]
[1725526618051,2.16031041,57070.0,57069.0,9.87008014]
[1725526618477,2.16031041,57070.0,57069.0,9.85692392]
[1725526618478,2.12526541,57070.0,57069.0,9.85692392]
[1725526618701,2.09022041,57070.0,57069.0,9.85692392]
[1725526618918,2.05517541,57070.0,57069.0,11.10182392]
[1725526619131,1.91499541,57070.0,57069.0,11.11498016]
[1725526619581,1.91499541,57070.0,57069.0,16.3133689]
[1725526620227,1.77481541,57070.0,57069.0,15.45227019]
[1725526620466,1.73977041,57070.0,57069.0,15.45227019]
[1725526620889,1.59959041,57070.0,57069.0,15.58744794]
[1725526621111,1.56454541,57070.0,57069.0,15.56330336]
[1725526621361,1.56454541,57070.0,57069.0,15.55014712]
[1725526622050,1.49445541,57070.0,57069.0,15.55014712]
[1725526622279,1.38932041,57070.0,57069.0,15.55014712]
[1725526622504,1.38932041,57070.0,57069.0,15.37014712]
[1725526622505,1.19348498,57070.0,57069.0,15.37014712]
[1725526622712,1.15843998,57070.0,57069.0,15.37014712]
[1725526623123,0.98834998,57070.0,57069.0,15.27014712]
[1725526623369,0.91825998,57070.0,57069.0,15.27014712]
[1725526623587,0.91825998,57070.0,57069.0,14.82181819]
[1725526623796,0.81312498,57070.0,57069.0,9.61027321]
[1725526624293,0.65460011,57070.0,57069.0,9.50927321]
[1725526624508,0.65460011,57070.0,57069.0,9.85972521]
[1725526624509,0.62601368,57070.0,57069.0,9.85972521]
[1725526624717,0.59096868,57070.0,57069.0,9.85972521]
[1725526624939,0.42222355,57070.0,57069.0,9.84272521]
[1725526625159,2.47288198,57071.0,57070.0,2.146253]
[1725526625370,1.86574236,57071.0,57070.0,10.4517093]
[1725526625577,1.87729082,57071.0,57070.0,10.68353034]
[1725526625801,1.79565436,57071.0,57070.0,10.5366693]
[1725526626025,1.69052236,57071.0,57070.0,11.09406182]
[1725526626453,1.69052236,57071.0,57070.0,12.59406182]
[1725526626660,1.66652236,57071.0,57070.0,12.62026182]
[1725526626867,1.56139036,57071.0,57070.0,8.19026182]
[1725526627084,1.56139036,57071.0,57070.0,12.62026182]
[1725526627085,1.49130236,57071.0,57070.0,12.62026182]
[1725526627728,0.96950339,57071.0,57070.0,12.86654275]
[1725526627939,3.22175211,57072.0,57071.0,2.14622]
[1725526628118,3.22175211,57072.0,57071.0,7.73455447]
[1725526628377,3.22175211,57072.0,57071.0,7.77620318]
[1725526628378,2.84624355,57072.0,57071.0,7.77620318]
[1725526628587,1.55016214,57072.0,57071.0,7.77620318]
[1725526628800,1.02106323,57072.0,57071.0,8.05177967]
[1725526629007,0.65261147,57072.0,57071.0,8.05177967]
[1725526629665,0.65261147,57072.0,57071.0,8.06577967]
[1725526629872,0.61756847,57072.0,57071.0,8.06577967]
[1725526630083,0.10894586,57072.0,57071.0,9.66382922]
[1725526630293,0.10894586,57072.0,57071.0,10.07372483]
[1725526630514,0.10894586,57072.0,57071.0,14.36378203]
[1725526630773,0.03885986,57072.0,57071.0,15.60868203]
[1725526631011,2.79194586,57073.0,57072.0,2.18783571]
[1725526631220,2.79194586,57073.0,57072.0,7.79935622]
[1725526631650,2.79194586,57073.0,57072.0,8.14979022]
[1725526631872,2.61673086,57073.0,57072.0,8.38150152]
[1725526632528,2.61673086,57073.0,57072.0,8.40760152]
[1725526632745,2.36564486,57073.0,57072.0,8.24060152]
[1725526632958,2.26051586,57073.0,57072.0,8.24060152]
[1725526633391,2.26051586,57073.0,57072.0,7.97785241]
[1725526633614,2.26051586,57073.0,57072.0,8.95589845]
[1725526633826,2.09695448,57073.0,57072.0,8.72418715]
[1725526634040,2.08530086,57073.0,57072.0,8.72418715]
[1725526634248,2.08530086,57073.0,57072.0,9.07462115]
[1725526634715,2.05025786,57073.0,57072.0,9.07462115]
[1725526634930,0.98008586,57073.0,57072.0,8.14262115]
[1725526635370,0.99207157,57073.0,57072.0,8.14262115]
[1725526635833,0.95702857,57073.0,57072.0,8.14262115]
[1725526636042,0.88694257,57073.0,57072.0,8.14262115]
[1725526636253,0.81685657,57073.0,57072.0,7.28152244]
[1725526636467,0.81685657,57073.0,57072.0,6.68480751]
[1725526636706,0.81685657,57073.0,57072.0,7.92970751]
[1725526636954,0.67668457,57073.0,57072.0,7.92970751]
[1725526637379,0.64164157,57073.0,57072.0,8.52642244]
[1725526637597,0.64164157,57073.0,57072.0,8.17598844]
[1725526637816,0.60659857,57073.0,57072.0,8.17598844]
[1725526638028,0.50146957,57073.0,57072.0,8.17598844]
[1725526638240,0.45444086,57073.0,57072.0,8.17598844]
[1725526638669,1.97563355,57074.0,57073.0,3.046154]
[1725526638879,0.72504382,57074.0,57073.0,5.81330226]
[1725526639097,0.72504382,57074.0,57073.0,5.89826226]
[1725526639592,0.72504382,57074.0,57073.0,6.24869026]
[1725526639814,0.57494513,57074.0,57073.0,6.27169026]
[1725526640043,0.50486113,57074.0,57073.0,6.27169026]
[1725526640499,0.50486113,57074.0,57073.0,6.44720122]
[1725526640721,0.46981913,57074.0,57073.0,6.46120122]
[1725526641185,0.43477713,57074.0,57073.0,6.47520122]
[1725526641392,0.32965113,57074.0,57073.0,6.47520122]
[1725526641639,0.28012901,57074.0,57073.0,6.51684993]
[1725526641859,2.4589,57075.0,57073.0,6.51684993]
[1725526641860,0.04820814,57075.0,57074.0,4.35245865]
[1725526642088,0.04820814,57075.0,57074.0,10.92192849]
[1725526642551,0.04820814,57075.0,57074.0,11.27235049]
[1725526642761,4.34801814,57076.0,57075.0,1.936202]
[1725526642978,4.34801814,57076.0,57075.0,7.52349248]
[1725526643189,4.35797726,57076.0,57075.0,8.61555719]
[1725526643670,4.35797726,57076.0,57075.0,10.21525506]
[1725526643939,4.18277226,57076.0,57075.0,10.18188944]
[1725526644179,4.18277226,57076.0,57075.0,10.53230544]
[1725526644419,4.18277226,57076.0,57075.0,10.58143544]
[1725526644909,4.07764926,57076.0,57075.0,10.58143544]
[1725526645146,4.00756726,57076.0,57075.0,10.61961223]
[1725526645600,4.00756726,57076.0,57075.0,11.73340932]
[1725526645848,3.97252626,57076.0,57075.0,11.73340932]
[1725526646092,3.83236226,57076.0,57075.0,11.58563182]
[1725526646791,3.76228026,57076.0,57075.0,11.58563182]
[1725526647018,3.65715726,57076.0,57075.0,13.69463181]
[1725526647281,3.59076994,57076.0,57075.0,13.69463181]
[1725526647959,3.55572894,57076.0,57075.0,13.69463181]
[1725526648258,3.52068794,57076.0,57075.0,13.69463181]
[1725526648498,3.41556494,57076.0,57075.0,13.69463181]
[1725526648731,3.38052394,57076.0,57075.0,13.69463181]
[1725526648971,3.34548294,57076.0,57075.0,13.69463181]
[1725526649209,3.24035994,57076.0,57075.0,17.22387679]
[1725526649667,3.12913958,57076.0,57075.0,17.22387679]
[1725526649874,3.05905758,57076.0,57075.0,17.22387679]
[1725526650128,3.02401658,57076.0,57075.0,17.22387679]
[1725526651274,2.95393458,57076.0,57075.0,17.22387679]
[1725526651547,2.84881158,57076.0,57075.0,17.22387679]
[1725526651775,2.74368858,57076.0,57075.0,17.22387679]
[1725526652013,2.67360658,57076.0,57075.0,17.22387679]
[1725526652474,2.03460658,57076.0,57075.0,16.58487679]
[1725526652934,1.93029858,57076.0,57075.0,16.58487679]
[1725526653182,1.86021658,57076.0,57075.0,16.58487679]
[1725526654120,1.64901158,57076.0,57075.0,16.54887679]
[1725526654850,0.47072083,57076.0,57075.0,16.54887679]
[1725526655073,0.43567983,57076.0,57075.0,16.54887679]
[1725526655300,1.18342153,57077.0,57076.0,2.181179]
[1725526655548,1.18342153,57077.0,57076.0,7.74569951]
[1725526655765,2.15765653,57078.0,57077.0,0.06913]
[1725526655992,1.26437712,57078.0,57077.0,6.15230351]
[1725526656262,1.26437712,57078.0,57077.0,6.58766651]
[1725526656475,1.26904853,57078.0,57077.0,7.28366651]
[1725526656720,1.01851959,57078.0,57077.0,7.38616994]
[1725526656977,1.01851959,57078.0,57077.0,7.99165319]
[1725526656978,0.85652509,57078.0,57077.0,7.99165319]
[1725526657175,0.85652509,57078.0,57077.0,7.75957294]
[1725526657438,0.85652509,57078.0,57077.0,8.88737003]
[1725526657661,0.85652509,57078.0,57077.0,9.11948814]
[1725526657908,0.71636509,57078.0,57077.0,8.88737003]
[1725526658161,0.68132509,57078.0,57077.0,8.88737003]
[1725526658625,0.68132509,57078.0,57077.0,8.90137003]
[1725526659379,0.57620509,57078.0,57077.0,8.90137003]
[1725526659607,0.54116509,57078.0,57077.0,8.90137003]
[1725526659827,0.33092509,57078.0,57077.0,9.3252443]
[1725526660322,0.32625368,57078.0,57077.0,9.3252443]
[1725526660522,0.32625368,57078.0,57077.0,14.17363207]
[1725526660802,0.29121368,57078.0,57077.0,14.96348927]
[1725526661040,0.22113368,57078.0,57077.0,14.96348927]
[1725526661473,0.15105368,57078.0,57077.0,14.61308627]
[1725526662206,6.8e-07,57078.0,57077.0,14.61308627]
[1725526662461,6.8e-07,57078.0,57077.0,12.23521927]
[1725526663375,0.18220068,57078.0,57077.0,12.23521927]
[1725526663611,0.18220068,57078.0,57077.0,6.5969743]
[1725526664081,0.19229061,57078.0,57077.0,6.5969743]
[1725526664340,0.19229061,57078.0,57077.0,9.0449743]
[1725526665721,0.19229061,57078.0,57077.0,8.5097713]
[1725526665958,0.54190561,57078.0,57077.0,10.17330933]
[1725526666206,0.54190561,57078.0,57077.0,5.78853478]
[1725526666520,0.53181568,57078.0,57077.0,5.78853478]
[1725526666868,0.53181568,57078.0,57077.0,5.76053478]
[1725526667091,0.53181568,57078.0,57077.0,5.67648523]
[1725526668025,0.53181568,57078.0,57077.0,5.77648523]
[1725526668278,0.53181568,57078.0,57077.0,5.80948523]
[1725526668518,0.53181568,57078.0,57077.0,5.81348523]
[1725526669449,0.53181568,57078.0,57077.0,4.81447823]
[1725526669674,0.63031911,57078.0,57077.0,4.3235318]
[1725526669906,0.53181568,57078.0,57077.0,2.28051096]
[1725526670130,0.3595383,57078.0,57077.0,1.32361096]
[1725526670837,0.3595383,57078.0,57077.0,1.33761096]
[1725526671068,0.3595383,57078.0,57077.0,1.33561096]
[1725526671295,0.3595383,57078.0,57077.0,1.35761096]
[1725526671536,0.3595383,57078.0,57077.0,1.33761096]
[1725526671760,0.3595383,57078.0,57077.0,1.37161096]
[1725526672003,0.3595383,57078.0,57077.0,1.42899096]
[1725526672230,0.3605383,57078.0,57077.0,1.55699096]
[1725526673380,0.3605383,57078.0,57077.0,1.6355673]
[1725526673835,0.3605383,57078.0,57077.0,1.6619067]
[1725526674054,0.3605383,57078.0,57077.0,1.6639067]
[1725526675178,0.3595383,57078.0,57077.0,1.53099096]
[1725526675426,0.3595383,57078.0,57077.0,1.55699096]
[1725526675427,0.3605383,57078.0,57077.0,1.55699096]
[1725526675889,0.3605383,57078.0,57077.0,1.54099096]
[1725526676329,0.3615383,57078.0,57077.0,1.55499096]
[1725526676977,0.3615383,57078.0,57077.0,1.55699096]
[1725526678092,0.3615383,57078.0,57077.0,1.55499096]
[1725526678961,0.3615383,57078.0,57077.0,1.55699096]
[1725526679412,0.3615383,57078.0,57077.0,1.63546137]
[1725526679880,0.3615383,57078.0,57077.0,1.55699096]
[1725526680097,0.3615383,57078.0,57077.0,1.68778893]
[1725526681254,0.3615383,57078.0,57077.0,1.55699096]
[1725526681699,0.3615383,57078.0,57077.0,1.55499096]
[1725526683152,0.3615383,57078.0,57077.0,1.55699096]
[1725526684308,0.3615383,57078.0,57077.0,1.66155603]
[1725526685742,0.3615383,57078.0,57077.0,2.27235603]
[1725526685973,0.3615383,57078.0,57077.0,2.27035603]
[1725526686222,0.3615383,57078.0,57077.0,2.16579096]
[1725526686887,0.3615383,57078.0,57077.0,2.24419433]
[1725526687111,0.3615383,57078.0,57077.0,2.16779096]
[1725526687997,0.3615383,57078.0,57077.0,2.27231535]
[1725526688226,0.3615383,57078.0,57077.0,2.16779096]
[1725526688452,0.3615383,57078.0,57077.0,2.27231408]
[1725526689126,0.3615383,57078.0,57077.0,2.44751508]
[1725526690285,0.3615383,57078.0,57077.0,2.44914508]
[1725526690508,0.3615383,57078.0,57077.0,2.27394408]
[1725526691189,0.3615383,57078.0,57077.0,2.46559299]
[1725526691426,0.3615383,57078.0,57077.0,2.30355032]
[1725526692017,0.3615383,57078.0,57077.0,2.47875132]
[1725526692579,0.3615383,57078.0,57077.0,4.46875132]
[1725526692799,0.3615383,57078.0,57077.0,5.29113084]
[1725526693239,0.3615383,57078.0,57077.0,5.2779724]
[1725526693459,0.3615383,57078.0,57077.0,5.29113064]
[1725526693900,0.3615383,57078.0,57077.0,4.94072764]
[1725526696136,0.3615383,57078.0,57077.0,4.83620452]
[1725526696364,0.3615383,57078.0,57077.0,4.81975672]
[1725526696581,0.3615383,57078.0,57077.0,4.80659848]
[1725526696813,0.3615383,57078.0,57077.0,4.83620427]
[1725526697037,0.3615383,57078.0,57077.0,4.94075306]
[1725526697248,0.3615383,57078.0,57077.0,4.84217954]
[1725526698324,0.3615383,57078.0,57077.0,4.84219777]
[1725526699474,0.3615383,57078.0,57077.0,4.49179477]
[1725526699698,0.3615383,57078.0,57077.0,4.38722775]
[1725526699917,0.3615383,57078.0,57077.0,4.38722798]
[1725526700130,0.3615383,57078.0,57077.0,4.73763116]
[1725526700344,0.3615383,57078.0,57077.0,4.96691346]
[1725526701220,0.3615383,57078.0,57077.0,4.83620468]
[1725526705557,0.3615383,57078.0,57077.0,4.73763116]
[1725526705984,0.3615383,57078.0,57077.0,4.73563116]
[1725526706441,0.3615383,57078.0,57077.0,4.73563145]
[1725526706649,0.3615383,57078.0,57077.0,4.73563168]
[1725526707097,0.3615383,57078.0,57077.0,4.18702768]
[1725526707312,0.3615383,57078.0,57077.0,2.41902768]
[1725526707525,0.46011182,57078.0,57077.0,2.17705547]
[1725526707737,0.46011182,57078.0,57077.0,1.97402768]
[1725526707951,0.46011182,57078.0,57077.0,2.09885468]
[1725526708159,0.3615383,57078.0,57077.0,1.99402768]
[1725526708389,0.3605383,57078.0,57077.0,2.11111535]
[1725526708599,0.3595383,57078.0,57077.0,1.96802768]
[1725526708819,0.3595383,57078.0,57077.0,1.98202768]
[1725526709053,0.3595383,57078.0,57077.0,1.99602768]
[1725526709276,0.3595383,57078.0,57077.0,1.98202768]
[1725526709490,0.3595383,57078.0,57077.0,1.9655795]
[1725526709731,0.3595383,57078.0,57077.0,1.72787066]
[1725526710161,0.3595383,57078.0,57077.0,1.74103042]
[1725526712653,0.3595383,57078.0,57077.0,6.79103042]
[1725526713111,0.3595383,57078.0,57077.0,6.77458072]
[1725526713353,0.3595383,57078.0,57077.0,6.77787068]
[1725526713826,0.3595383,57078.0,57077.0,6.79103045]
[1725526714285,0.3595383,57078.0,57077.0,6.9486782]
[1725526714948,0.13505499,57078.0,57077.0,6.79103045]
[1725526716044,0.13505499,57078.0,57077.0,6.76142096]
[1725526716304,0.13505499,57078.0,57077.0,6.77787064]
[1725526716522,0.13505499,57078.0,57077.0,6.79103038]
[1725526717234,0.13505499,57078.0,57077.0,3.70103038]
[1725526717450,0.13505499,57078.0,57077.0,3.72103038]
[1725526718342,1.25280232,57079.0,57077.0,3.72103038]
[1725526718552,1.25280232,57079.0,57078.0,3.22460942]
[1725526718761,1.25280232,57079.0,57078.0,3.48550038]
[1725526719416,1.25280232,57079.0,57078.0,3.47205749]
[1725526719860,1.25280232,57079.0,57078.0,3.48521727]
[1725526720806,1.25280232,57079.0,57078.0,3.49921727]
[1725526721229,1.25280232,57079.0,57078.0,3.51321727]
[1725526721446,1.66790232,57079.0,57078.0,3.51321727]
[1725526722643,1.66790232,57079.0,57078.0,3.50005749]
[1725526722852,1.66790232,57079.0,57078.0,3.50005754]
[1725526723273,1.66790232,57079.0,57078.0,3.17605754]
[1725526723487,1.66790232,57079.0,57078.0,3.18921732]
[1725526725909,1.67211929,57079.0,57078.0,2.96976759]
[1725526726124,1.67211929,57079.0,57078.0,2.17321732]
[1725526726338,1.67211929,57079.0,57078.0,2.07321732]
[1725526726979,1.67211929,57079.0,57078.0,2.01221732]
[1725526727418,1.67211929,57079.0,57078.0,1.32121732]
[1725526727641,1.84731429,57079.0,57078.0,1.14570636]
[1725526727878,1.84731429,57079.0,57078.0,0.37610256]
[1725526728121,1.84731429,57079.0,57078.0,0.24470636]
[1725526728341,1.84812929,57079.0,57078.0,0.24470636]
[1725526728803,1.67293429,57079.0,57078.0,0.24470636]
[1725526733166,1.25783429,57079.0,57078.0,5.47021732]
[1725526733377,1.25783429,57079.0,57078.0,5.66661732]
[1725526735354,1.25783429,57079.0,57078.0,5.47021732]
[1725526736030,1.25783429,57079.0,57078.0,5.47021736]
[1725526736709,1.25783429,57079.0,57078.0,0.42021736]
[1725526736921,1.25783429,57079.0,57078.0,5.47021736]
[1725526740550,1.25783429,57079.0,57078.0,5.47184736]
[1725526740769,1.25783429,57079.0,57078.0,0.42184736]
[1725526741000,0.95035016,57079.0,57078.0,0.42184736]
[1725526741646,0.95035016,57079.0,57078.0,0.39223781]
[1725526741892,0.95035016,57079.0,57078.0,0.40868758]
[1725526742345,0.95035016,57079.0,57078.0,0.4218474]
[1725526745348,0.95035016,57079.0,57078.0,1.0324474]
[1725526752308,0.68673869,57079.0,57078.0,1.0324474]
[1725526754103,0.68673869,57079.0,57078.0,1.01599763]
[1725526754318,0.68673869,57079.0,57078.0,1.01928757]
[1725526754961,0.68673869,57079.0,57078.0,1.03244737]
[1725526755167,0.68673869,57079.0,57078.0,1.03444737]
[1725526755418,0.68673869,57079.0,57078.0,1.03244737]
[1725526757076,0.43858452,57079.0,57078.0,1.03244737]
[1725526757305,0.43858452,57079.0,57078.0,1.01599761]
[1725526757777,0.43858452,57079.0,57078.0,1.01928758]
[1725526758241,0.43858452,57079.0,57078.0,1.0324474]
[1725526768099,0.43858452,57079.0,57078.0,1.37317031]
[1725526768784,0.43858452,57079.0,57078.0,1.2153474]
[1725526770535,0.43858452,57079.0,57078.0,1.19889763]
[1725526770974,0.43858452,57079.0,57078.0,1.21534702]
[1725526773707,0.43858452,57079.0,57078.0,1.37314301]
[1725526773928,0.43858452,57079.0,57078.0,1.21534702]
[1725526774143,0.43858452,57079.0,57078.0,1.18573781]
[1725526774379,0.43858452,57079.0,57078.0,1.20218685]
[1725526774591,0.43858452,57079.0,57078.0,1.21534608]
[1725526777041,0.43858452,57079.0,57078.0,1.21734608]
[1725526777476,0.43858452,57079.0,57078.0,1.20089704]
[1725526777907,0.43858452,57079.0,57078.0,1.21734609]
[1725526778832,0.44257302,57079.0,57078.0,1.21734609]
[1725526779268,0.44257302,57079.0,57078.0,1.21534609]
[1725526781270,0.44257302,57079.0,57078.0,1.20218727]
[1725526781500,0.44257302,57079.0,57078.0,1.74978227]
[1725526781711,0.44257302,57079.0,57078.0,7.53187927]
[1725526781921,0.44257302,57079.0,57078.0,7.54503884]
[1725526782652,0.44257302,57079.0,57078.0,7.53103884]
[1725526783102,0.44257302,57079.0,57078.0,7.54503884]
[1725526783767,0.44257302,57079.0,57078.0,7.53103884]
[1725526784232,0.44257302,57079.0,57078.0,6.89803697]
[1725526784463,0.44257302,57079.0,57078.0,2.73893997]
[1725526784707,0.44257302,57079.0,57078.0,2.75293997]
[1725526787014,0.44257302,57079.0,57078.0,2.73649238]
[1725526787257,0.44257302,57079.0,57078.0,2.75294107]
[1725526787706,0.44257302,57079.0,57078.0,2.40254346]
[1725526788145,0.44257302,57079.0,57078.0,1.41054346]
[1725526788378,0.44257302,57079.0,57078.0,2.72654346]
[1725526788596,0.44257302,57079.0,57078.0,2.56454346]
[1725526789061,0.44257302,57079.0,57078.0,2.56654346]
[1725526789540,0.44257302,57079.0,57078.0,3.26733746]
[1725526790909,0.44257302,57079.0,57078.0,3.25088877]
[1725526791144,0.44257302,57079.0,57078.0,3.25417736]
[1725526791377,0.44257302,57079.0,57078.0,3.2673354]
[1725526793404,0.44257302,57079.0,57078.0,3.2653354]
[1725526794334,0.44257302,57079.0,57078.0,3.2653361]
[1725526794559,0.44257302,57079.0,57078.0,3.25217806]
[1725526794790,0.44257302,57079.0,57078.0,3.24888841]
[1725526795025,0.44257302,57079.0,57078.0,3.26533665]
[1725526795275,0.44257302,57079.0,57078.0,3.26733664]
[1725526796455,0.44257302,57079.0,57078.0,3.25417805]
[1725526797870,0.44257302,57079.0,57078.0,3.25417817]
[1725526799462,0.18596185,57079.0,57078.0,3.51044835]
[1725526800317,0.18596185,57079.0,57078.0,3.89734835]
[1725526800759,0.18596185,57079.0,57078.0,4.24774535]
[1725526800987,0.18596185,57079.0,57078.0,4.24774449]
[1725526801644,0.18596185,57079.0,57078.0,4.27074449]
[1725526802076,0.18596185,57079.0,57078.0,4.17217097]
[1725526802758,0.18596185,57079.0,57078.0,4.01447431]
[1725526803437,0.18596185,57079.0,57078.0,4.11304783]
[1725526803656,0.18596185,57079.0,57078.0,5.07594483]
[1725526803906,0.18596185,57079.0,57078.0,2.95904637]
[1725526804142,0.18596185,57079.0,57078.0,8.00904637]
[1725526804353,0.18596185,57079.0,57078.0,7.99260033]
[1725526804814,0.18596185,57079.0,57078.0,8.00904564]
[1725526805025,0.18596185,57079.0,57078.0,7.99504564]
[1725526805249,0.18596185,57079.0,57078.0,7.54407512]
[1725526805740,0.18596185,57079.0,57078.0,7.43829136]
[1725526805969,0.18596185,57079.0,57078.0,4.77289436]
[1725526806196,0.18596185,57079.0,57078.0,4.62927812]
[1725526806671,0.18596185,57079.0,57078.0,4.64327812]
[1725526806884,0.18596185,57079.0,57078.0,4.62683281]
[1725526807537,0.28453537,57079.0,57078.0,2.38178612]
[1725526808025,0.28453537,57079.0,57078.0,2.36533781]
[1725526808471,0.18596185,57079.0,57078.0,2.36533781]
[1725526809130,0.18596185,57079.0,57078.0,2.35133781]
[1725526809397,0.28453537,57079.0,57078.0,2.46533781]
[1725526809609,0.28453537,57079.0,57078.0,1.83883781]
[1725526809829,0.28453537,57079.0,57078.0,1.85283781]
[1725526810047,0.18596185,57079.0,57078.0,1.85283781]
[1725526810265,0.28453537,57079.0,57078.0,1.85283781]
[1725526810494,0.18596185,57079.0,57078.0,1.83883781]
[1725526811663,0.18596185,57079.0,57078.0,1.85528818]
[1725526812327,0.68063537,57079.0,57078.0,1.85528818]
[1725526812770,0.68063537,57079.0,57078.0,1.86928818]
[1725526813024,0.58206185,57079.0,57078.0,1.86928818]
[1725526813727,0.68063537,57079.0,57078.0,1.86928818]
[1725526814158,0.68063537,57079.0,57078.0,2.00065196]
[1725526814670,0.68063537,57079.0,57078.0,1.86928818]